bitfinex/quotes_BTCUSD_20240712
["timestamp","ask_amount","ask_price","bid_price","bid_amount"]
[1720762227947,0.13789672,57206.0,57205.0,0.024]
[1720762227948,0.72735472,57206.0,57205.0,0.024]
[1720762228312,0.78735472,57206.0,57205.0,0.024]
[1720762228472,1.09448372,57206.0,57205.0,0.024]
[1720762228684,1.03448372,57206.0,57205.0,0.024]
[1720762228974,1.03348505,57206.0,57205.0,0.012]
[1720762229175,0.122377,57200.0,57199.0,0.142613]
[1720762229314,0.13691105,57200.0,57199.0,0.142613]
[1720762229510,0.38166605,57200.0,57199.0,0.142613]
[1720762229715,0.72991447,57200.0,57199.0,0.000913]
[1720762232094,0.11453405,57200.0,57199.0,0.149213]
[1720762232380,0.11453405,57200.0,57199.0,0.156213]
[1720762232381,0.01553437,57200.0,57199.0,0.156213]
[1720762232576,0.01653437,57200.0,57199.0,0.163213]
[1720762233078,0.11553437,57200.0,57199.0,0.156213]
[1720762233500,0.11653437,57200.0,57199.0,0.163213]
[1720762233684,0.11553437,57200.0,57199.0,0.156213]
[1720762234126,0.01453437,57200.0,57199.0,0.149213]
[1720762235172,0.02549017,57207.0,57201.0,0.06]
[1720762235374,0.11453354,57206.0,57203.0,0.1446]
[1720762235581,0.01453324,57205.0,57203.0,0.1446]
[1720762235793,0.222358,57209.0,57205.0,0.1446]
[1720762236004,0.01453301,57208.0,57206.0,0.08511435]
[1720762236211,0.01453301,57208.0,57202.0,0.00349615]
[1720762236212,0.244697,57214.0,57207.0,0.1446]
[1720762236442,0.01453211,57213.0,57207.0,0.1446]
[1720762236644,0.01453211,57212.0,57207.0,0.1446]
[1720762236840,0.01453211,57211.0,57207.0,0.1446]
[1720762237041,0.01453211,57210.0,57207.0,0.1446]
[1720762237244,0.01453211,57209.0,57207.0,0.1446]
[1720762237450,0.122351,57213.0,57207.0,0.1446]
[1720762237451,0.01453211,57208.0,57207.0,0.1446]
[1720762237804,0.01453211,57211.0,57207.0,0.1446]
[1720762238035,0.122356,57210.0,57207.0,0.1446]
[1720762238262,0.01453211,57211.0,57206.0,0.009]
[1720762238263,0.367087,57207.0,57206.0,0.009]
[1720762238478,0.13689411,57207.0,57204.0,0.1446]
[1720762238635,0.244719,57209.0,57204.0,0.1446]
[1720762238636,0.01453211,57206.0,57204.0,0.1446]
[1720762238841,0.1,57208.0,57207.0,0.006]
[1720762239044,0.11453266,57208.0,57207.0,0.006]
[1720762239426,0.11553266,57208.0,57206.0,0.01]
[1720762239795,0.11553266,57208.0,57206.0,0.1446]
[1720762239796,0.01453266,57207.0,57206.0,0.1446]
[1720762240913,0.01453266,57207.0,57206.0,0.1506]
[1720762241131,0.01453266,57207.0,57206.0,0.1446]
[1720762241762,0.01453266,57207.0,57206.0,0.1506]
[1720762242200,0.01453266,57207.0,57206.0,0.1446]
[1720762242368,0.01453215,57207.0,57206.0,0.1446]
[1720762242576,0.01553215,57207.0,57206.0,0.1666]
[1720762245209,0.01553217,57207.0,57206.0,0.1666]
[1720762246981,0.13789417,57207.0,57206.0,0.1666]
[1720762247184,0.01553217,57207.0,57206.0,0.1666]
[1720762249210,0.01553224,57207.0,57206.0,0.1666]
[1720762252552,0.001,57207.0,57206.0,0.1666]
[1720762252775,0.001,57207.0,57206.0,0.022]
[1720762252981,0.001,57207.0,57206.0,0.022913]
[1720762253232,0.13789427,57207.0,57206.0,0.022913]
[1720762253644,0.38261927,57207.0,57206.0,0.022913]
[1720762255036,0.13789427,57207.0,57206.0,0.022913]
[1720762255573,0.13789541,57207.0,57206.0,0.022913]
[1720762255802,0.123362,57207.0,57206.0,0.022913]
[1720762256002,0.13789541,57207.0,57206.0,0.022913]
[1720762256201,0.38262041,57207.0,57206.0,0.022913]
[1720762259596,0.38262012,57207.0,57206.0,0.022913]
[1720762260349,0.13789512,57207.0,57206.0,0.022913]
[1720762261982,0.122362,57207.0,57206.0,0.022913]
[1720762262182,0.1368951,57207.0,57206.0,0.022913]
[1720762263189,0.1368951,57207.0,57206.0,0.169213]
[1720762264165,0.21506806,57210.0,57206.0,0.169213]
[1720762264773,0.122359,57209.0,57206.0,0.169213]
[1720762265112,0.122359,57209.0,57206.0,0.158213]
[1720762265551,0.122359,57209.0,57206.0,0.154213]
[1720762265673,0.122359,57209.0,57206.0,0.161213]
[1720762265898,0.122359,57209.0,57206.0,0.154213]
[1720762266113,0.122359,57209.0,57206.0,0.147213]
[1720762266316,0.122359,57209.0,57206.0,0.156213]
[1720762266528,0.1,57208.0,57206.0,0.156213]
[1720762268069,0.1,57208.0,57206.0,0.164213]
[1720762268476,0.1,57208.0,57206.0,0.156213]
[1720762268657,0.1,57208.0,57206.0,0.147213]
[1720762269004,0.1,57208.0,57206.0,0.166213]
[1720762269203,0.101,57208.0,57206.0,0.166213]
[1720762269759,0.101,57208.0,57206.0,0.157213]
[1720762270352,0.1,57208.0,57206.0,0.147213]
[1720762271517,0.1,57208.0,57206.0,0.155213]
[1720762271909,0.001,57208.0,57207.0,0.23311435]
[1720762272102,0.001,57208.0,57207.0,0.148]
[1720762272526,0.001,57208.0,57207.0,0.819812]
[1720762272721,0.01553206,57208.0,57207.0,1.206437]
[1720762272991,0.001,57208.0,57207.0,1.206437]
[1720762273124,0.25120095,57226.0,57216.0,0.264243]
[1720762273304,0.02380677,57220.0,57216.0,0.346143]
[1720762273508,0.01452909,57219.0,57216.0,0.835515]
[1720762273726,0.01452909,57218.0,57216.0,0.835515]
[1720762273931,0.01535909,57217.0,57216.0,0.590829]
[1720762274136,0.01535909,57217.0,57216.0,0.1419]
[1720762275602,0.00083,57217.0,57216.0,0.1419]
[1720762275748,0.00083,57217.0,57216.0,0.1509]
[1720762275946,0.01536005,57217.0,57216.0,0.1599]
[1720762277760,0.01536005,57217.0,57216.0,0.018]
[1720762277887,0.69256505,57217.0,57216.0,0.018]
[1720762278295,1.4413923,57217.0,57216.0,0.018]
[1720762278734,1.26134705,57217.0,57216.0,0.018]
[1720762278938,1.20134705,57217.0,57216.0,0.018]
[1720762279192,0.122362,57208.0,57206.0,0.000913]
[1720762279311,0.01453261,57207.0,57206.0,0.000913]
[1720762280151,0.13689461,57207.0,57206.0,0.000913]
[1720762280361,0.13689461,57207.0,57206.0,0.005913]
[1720762281804,0.13689461,57207.0,57206.0,0.007913]
[1720762282148,0.13689461,57207.0,57206.0,0.014913]
[1720762282349,0.13689458,57207.0,57206.0,0.014913]
[1720762282601,0.62634458,57207.0,57206.0,0.014913]
[1720762282976,0.6263452,57207.0,57206.0,0.014913]
[1720762283586,0.65073727,57207.0,57206.0,0.014913]
[1720762285245,1.40388727,57207.0,57206.0,0.014913]
[1720762285467,1.70848727,57207.0,57206.0,0.014913]
[1720762285669,1.69395407,57207.0,57206.0,0.00364018]
[1720762285866,1.70848973,57207.0,57206.0,0.00364018]
[1720762286065,1.70848973,57207.0,57199.0,0.000913]
[1720762286066,1.320342,57200.0,57199.0,0.000913]
[1720762286322,1.31487766,57200.0,57199.0,0.000913]
[1720762286679,1.43487766,57200.0,57199.0,0.000913]
[1720762288266,1.31487766,57200.0,57199.0,0.000913]
[1720762288467,0.92642266,57200.0,57199.0,0.000913]
[1720762288669,0.92742266,57200.0,57199.0,0.000913]
[1720762288870,1.17217766,57200.0,57199.0,0.000913]
[1720762289074,1.157642,57200.0,57199.0,0.000913]
[1720762289274,1.17217703,57200.0,57199.0,0.000913]
[1720762289834,0.92742203,57200.0,57199.0,0.000913]
[1720762292610,0.92742309,57200.0,57199.0,0.000913]
[1720762294078,1.04742309,57200.0,57199.0,0.000913]
[1720762294275,1.29217809,57200.0,57199.0,0.000913]
[1720762294610,1.19580563,57200.0,57199.0,0.000913]
[1720762294922,0.95105063,57200.0,57199.0,0.000913]
[1720762295952,1.19580612,57200.0,57199.0,0.000913]
[1720762296417,1.31580612,57200.0,57199.0,0.000913]
[1720762296538,1.07105112,57200.0,57199.0,0.000913]
[1720762296946,1.31580612,57200.0,57199.0,0.000913]
[1720762298794,1.46201673,57200.0,57199.0,0.000913]
[1720762299001,1.52591678,57200.0,57199.0,0.000913]
[1720762299264,1.37970617,57200.0,57199.0,0.000913]
[1720762302867,1.37970629,57200.0,57199.0,0.000913]
[1720762303865,1.37970629,57200.0,57180.0,0.000913]
[1720762303866,0.856926,57181.0,57180.0,0.000913]
[1720762304071,1.21630115,57181.0,57180.0,0.000913]
[1720762304242,0.97146515,57181.0,57180.0,0.000913]
[1720762304813,0.1,57181.0,57180.0,0.145113]
[1720762304942,0.467254,57181.0,57180.0,0.145113]
[1720762305367,0.1,57181.0,57180.0,0.145113]
[1720762305564,0.103,57181.0,57180.0,0.145113]
[1720762305777,0.104,57181.0,57180.0,0.145113]
[1720762305984,0.101,57181.0,57180.0,0.145113]
[1720762306380,0.244805,57189.0,57180.0,0.145113]
[1720762306381,0.244795,57191.0,57180.0,0.005913]
[1720762306579,0.244795,57191.0,57184.0,0.08511435]
[1720762306580,0.122401,57189.0,57184.0,0.08511435]
[1720762306779,0.122401,57189.0,57186.0,0.1424]
[1720762306982,0.1,57188.0,57186.0,0.1424]
[1720762308061,0.1,57188.0,57186.0,0.1484]
[1720762308277,0.1,57189.0,57186.0,0.1424]
[1720762308553,0.1,57189.0,57185.0,0.0632]
[1720762308748,0.002,57188.0,57187.0,0.1406]
[1720762309097,0.001,57188.0,57187.0,0.1406]
[1720762309501,0.001,57189.0,57187.0,0.082]
[1720762309700,0.001,57189.0,57187.0,0.1456]
[1720762309901,0.001,57189.0,57188.0,0.082]
[1720762310139,0.001,57189.0,57188.0,0.1456]
[1720762310337,0.01553719,57189.0,57188.0,0.1456]
[1720762310922,0.01453719,57189.0,57188.0,0.1456]
[1720762311738,0.01553719,57189.0,57188.0,0.1456]
[1720762312387,0.01553719,57189.0,57188.0,0.1526]
[1720762313038,0.01653707,57189.0,57188.0,0.1596]
[1720762314699,0.01653707,57189.0,57188.0,0.646809]
[1720762314895,0.01653707,57189.0,57188.0,0.891615]
[1720762314896,0.002,57189.0,57188.0,0.891615]
[1720762317454,0.002,57189.0,57188.0,1.136421]
[1720762317880,0.002,57189.0,57188.0,1.336421]
[1720762318299,0.00306353,57208.0,57202.0,0.1398]
[1720762318513,0.245514,57217.0,57204.0,0.122368]
[1720762318514,0.01453283,57207.0,57204.0,0.122368]
[1720762318714,0.122354,57211.0,57204.0,0.122368]
[1720762318715,0.01453283,57206.0,57204.0,0.122368]
[1720762318891,0.12584742,57211.0,57204.0,0.122368]
[1720762319093,0.01453226,57210.0,57204.0,0.122368]
[1720762319299,0.01453226,57209.0,57204.0,0.122368]
[1720762319519,0.12584742,57211.0,57204.0,0.122368]
[1720762319717,0.01453194,57210.0,57204.0,0.122368]
[1720762320079,0.123171,57217.0,57209.0,0.514874]
[1720762320234,0.01802454,57216.0,57209.0,0.514874]
[1720762320434,0.01453112,57215.0,57209.0,0.514874]
[1720762320659,0.01453112,57214.0,57209.0,0.514874]
[1720762320977,0.01453112,57213.0,57209.0,0.514874]
[1720762321207,0.00349342,57216.0,57209.0,0.514874]
[1720762321208,0.01453112,57212.0,57209.0,0.514874]
[1720762321357,0.00349342,57216.0,57209.0,0.514874]
[1720762321358,0.10349342,57216.0,57209.0,0.514874]
[1720762321584,0.01453102,57215.0,57209.0,0.514874]
[1720762321787,0.01453102,57214.0,57209.0,0.514874]
[1720762321988,0.014531,57213.0,57209.0,0.1478]
[1720762322192,0.1,57214.0,57209.0,0.1478]
[1720762322389,0.01453112,57213.0,57209.0,0.1568]
[1720762322566,0.1,57214.0,57209.0,0.1528]
[1720762322788,0.01453113,57213.0,57209.0,0.1478]
[1720762322973,0.1,57214.0,57209.0,0.1498]
[1720762323171,0.01453112,57213.0,57209.0,0.1528]
[1720762323383,0.1,57214.0,57209.0,0.1508]
[1720762323623,0.244704,57212.0,57209.0,0.0854]
[1720762323828,0.12584842,57211.0,57209.0,0.003]
[1720762324557,0.12584842,57211.0,57206.0,0.1469]
[1720762324760,0.12584842,57211.0,57209.0,0.01]
[1720762324964,0.122356,57210.0,57209.0,0.01]
[1720762325097,0.122356,57210.0,57209.0,0.005]
[1720762325303,0.122358,57209.0,57206.0,0.1469]
[1720762326444,0.123358,57209.0,57206.0,0.1549]
[1720762326845,0.001,57209.0,57206.0,0.1549]
[1720762327079,0.001,57209.0,57206.0,0.130364]
[1720762327276,0.001,57209.0,57207.0,0.20747635]
[1720762327425,0.001,57209.0,57208.0,0.1404]
[1720762328163,0.00655695,57213.0,57208.0,0.1404]
[1720762328367,0.12890695,57213.0,57208.0,0.1404]
[1720762328560,0.244693,57215.0,57208.0,0.1404]
[1720762328561,0.1,57212.0,57209.0,0.1404]
[1720762329190,0.222352,57212.0,57209.0,0.1404]
[1720762329600,0.122354,57211.0,57209.0,0.1404]
[1720762329818,0.22584542,57212.0,57209.0,0.1404]
[1720762330015,0.1,57212.0,57209.0,0.1404]
[1720762330217,0.1,57212.0,57209.0,0.1434]
[1720762330422,0.222345,57215.0,57209.0,0.1434]
[1720762330593,0.22583842,57215.0,57209.0,0.1404]
[1720762330796,0.122347,57214.0,57209.0,0.1404]
[1720762331020,0.1,57213.0,57209.0,0.1444]
[1720762331623,0.1,57213.0,57210.0,0.1381]
[1720762332022,0.1,57216.0,57210.0,0.1381]
[1720762332479,0.122345,57215.0,57210.0,0.1381]
[1720762332892,0.122345,57215.0,57210.0,0.1411]
[1720762333118,0.1,57214.0,57210.0,0.1411]
[1720762333880,0.1,57214.0,57210.0,0.1431]
[1720762334262,0.00306353,57213.0,57210.0,0.1431]
[1720762334458,0.00306353,57213.0,57210.0,0.1401]
[1720762334704,0.12541353,57213.0,57210.0,0.1431]
[1720762334884,0.1,57212.0,57210.0,0.1431]
[1720762335086,0.00306353,57211.0,57210.0,0.1411]
[1720762335283,0.00306353,57211.0,57210.0,0.1381]
[1720762335485,0.00306353,57211.0,57210.0,0.1411]
[1720762335685,0.12540753,57216.0,57210.0,0.1461]
[1720762335905,0.12540753,57216.0,57210.0,0.1431]
[1720762336231,0.1,57215.0,57210.0,0.1441]
[1720762336383,0.001,57211.0,57210.0,0.1461]
[1720762336773,0.001,57211.0,57210.0,0.1531]
[1720762337175,0.001,57211.0,57210.0,0.1461]
[1720762337780,0.00306353,57214.0,57210.0,0.1381]
[1720762338225,0.00306353,57214.0,57210.0,0.1391]
[1720762338861,0.00306353,57214.0,57210.0,0.1381]
[1720762339082,0.00306353,57214.0,57210.0,0.1421]
[1720762339282,0.21792335,57216.0,57210.0,0.1421]
[1720762339415,0.13687605,57215.0,57211.0,0.00232196]
[1720762339620,0.122345,57215.0,57211.0,0.00232196]
[1720762340228,0.122345,57215.0,57210.0,0.1451]
[1720762340636,0.122344,57216.0,57211.0,0.00306353]
[1720762340836,0.26840278,57217.0,57212.0,0.122351]
[1720762340837,0.01453095,57215.0,57212.0,0.122351]
[1720762341062,0.02371978,57217.0,57213.0,0.00306353]
[1720762341285,0.01453094,57216.0,57213.0,0.00306353]
[1720762341497,0.01453094,57215.0,57213.0,0.00306353]
[1720762341827,0.02371978,57217.0,57213.0,0.00306353]
[1720762341977,0.01453094,57216.0,57213.0,0.00306353]
[1720762342187,0.02371978,57217.0,57213.0,0.00306353]
[1720762342394,0.01453094,57216.0,57213.0,0.00306353]
[1720762342566,0.02371978,57217.0,57213.0,0.00306353]
[1720762342777,0.01453089,57216.0,57213.0,0.00306353]
[1720762342981,0.01453089,57215.0,57213.0,0.00506353]
[1720762343181,0.01453089,57214.0,57213.0,0.00506353]
[1720762343583,0.01453089,57216.0,57213.0,0.00506353]
[1720762343783,0.00083,57217.0,57216.0,0.63814335]
[1720762344155,0.00083,57217.0,57216.0,0.873115]
[1720762344342,0.00083,57217.0,57216.0,0.1414]
[1720762345323,0.12582842,57220.0,57216.0,0.1414]
[1720762345520,0.12582842,57220.0,57216.0,0.1554]
[1720762345521,0.001,57217.0,57216.0,0.1554]
[1720762346040,0.122335,57220.0,57216.0,0.1414]
[1720762346227,0.122335,57220.0,57217.0,0.00306353]
[1720762347056,0.244651,57225.0,57218.0,0.1447]
[1720762347254,0.122329,57223.0,57219.0,0.00306353]
[1720762347456,0.14035332,57222.0,57219.0,0.00306353]
[1720762347662,0.0145289,57221.0,57219.0,0.00306353]
[1720762348289,0.001,57220.0,57219.0,0.00306353]
[1720762348452,0.001,57220.0,57219.0,0.268036]
[1720762348660,0.222322,57226.0,57220.0,0.145]
[1720762348860,0.36111127,57246.0,57219.0,0.122336]
[1720762348861,0.00083,57229.0,57226.0,0.389644]
[1720762349028,0.11452716,57228.0,57227.0,0.122319]
[1720762349230,0.11452716,57228.0,57226.0,0.267321]
[1720762349231,0.1,57228.0,57226.0,0.267321]
[1720762349431,0.00582666,57234.0,57226.0,0.267321]
[1720762349653,0.01452661,57233.0,57227.0,0.12538253]
[1720762349941,0.01452661,57232.0,57227.0,0.12538253]
[1720762350114,0.01452661,57231.0,57228.0,0.122317]
[1720762350349,0.24514788,57234.0,57229.0,0.00306353]
[1720762350534,0.0145266,57233.0,57229.0,0.00306353]
[1720762350734,0.0145266,57232.0,57229.0,0.00306353]
[1720762350936,0.00349342,57231.0,57229.0,0.00306353]
[1720762351251,0.122317,57228.0,57227.0,0.65464964]
[1720762351449,0.005,57234.0,57230.0,0.12]
[1720762351583,0.025,57233.0,57232.0,0.244618]
[1720762351791,0.025,57233.0,57232.0,0.122309]
[1720762352402,0.025,57233.0,57232.0,0.36999053]
[1720762353034,0.02583,57233.0,57232.0,0.36999053]
[1720762353649,0.02583,57233.0,57232.0,0.37099053]
[1720762354427,0.02583,57233.0,57232.0,0.37299053]
[1720762356362,0.02583,57233.0,57232.0,0.49299053]
[1720762356566,0.02583,57233.0,57232.0,0.87630853]
[1720762356781,0.02583,57233.0,57232.0,0.873245]
[1720762357799,0.02583,57233.0,57232.0,0.872245]
[1720762358060,0.02583,57233.0,57232.0,0.870245]
[1720762358269,0.02583,57233.0,57232.0,1.114863]
[1720762358477,0.02583,57233.0,57232.0,1.566481]
[1720762358478,0.02683,57233.0,57232.0,1.566481]
[1720762359102,0.02583,57233.0,57232.0,1.559481]
[1720762359300,0.02683,57233.0,57232.0,1.573481]
[1720762359653,0.02683,57233.0,57232.0,1.373481]
[1720762359856,0.02683,57233.0,57232.0,1.370481]
[1720762359857,0.02583,57233.0,57232.0,1.370481]
[1720762360080,0.02583,57233.0,57232.0,1.384481]
[1720762360302,0.02683,57233.0,57232.0,1.373481]
[1720762360663,0.02683,57233.0,57232.0,1.387481]
[1720762361654,0.02683,57233.0,57232.0,1.142863]
[1720762363853,0.02683,57233.0,57232.0,0.411318]
[1720762364221,0.02683,57233.0,57232.0,0.778245]
[1720762364494,0.02683,57233.0,57232.0,0.898245]
[1720762365683,0.02683,57233.0,57232.0,0.778245]
[1720762367398,0.02683,57233.0,57232.0,0.898245]
[1720762367804,0.02683,57233.0,57232.0,0.778245]
[1720762368415,0.02683,57233.0,57232.0,0.898245]
[1720762372575,0.02683,57233.0,57232.0,1.142863]
[1720762372731,0.02683,57233.0,57232.0,1.34592653]
[1720762373127,0.02683,57233.0,57232.0,1.342863]
[1720762374908,0.02683,57233.0,57232.0,1.687481]
[1720762378230,0.02683,57233.0,57232.0,1.487481]
[1720762379136,0.02683,57233.0,57232.0,1.142863]
[1720762385459,0.02683,57233.0,57232.0,1.143776]
[1720762385662,0.02683,57233.0,57232.0,0.53454]
[1720762385992,0.02683,57233.0,57232.0,0.39584]
[1720762386688,0.02683,57233.0,57232.0,0.51584]
[1720762387787,0.02683,57233.0,57232.0,0.39584]
[1720762389808,0.02683,57233.0,57232.0,0.151222]
[1720762392296,0.02683,57233.0,57232.0,0.028913]
[1720762392941,0.393751,57233.0,57232.0,0.028913]
[1720762393149,0.534451,57233.0,57232.0,0.028913]
[1720762393351,0.79359082,57233.0,57232.0,0.028913]
[1720762393958,0.79359082,57233.0,57232.0,0.014913]
[1720762394316,0.79259082,57233.0,57232.0,0.009913]
[1720762394717,0.79259082,57233.0,57232.0,0.019913]
[1720762394718,0.79359082,57233.0,57232.0,0.019913]
[1720762395096,1.23720482,57233.0,57232.0,0.009913]
[1720762395299,1.322679,57233.0,57232.0,0.009913]
[1720762395474,1.45720622,57233.0,57232.0,0.009913]
[1720762395920,1.62744362,57233.0,57232.0,0.009913]
[1720762396146,1.70182022,57233.0,57232.0,0.000913]
[1720762396349,1.85893561,57233.0,57232.0,0.000913]
[1720762396553,1.70282022,57233.0,57232.0,0.000913]
[1720762396758,1.70182022,57233.0,57232.0,0.000913]
[1720762396984,1.90182022,57233.0,57232.0,0.000913]
[1720762397240,1.70782022,57233.0,57232.0,0.001913]
[1720762397647,1.79091764,57233.0,57232.0,0.001913]
[1720762397888,1.99091764,57233.0,57232.0,0.001913]
[1720762398310,1.99091764,57233.0,57232.0,0.002913]
[1720762398311,2.02376866,57233.0,57232.0,0.002913]
[1720762398753,1.82377148,57233.0,57232.0,0.002913]
[1720762398976,1.74067406,57233.0,57232.0,0.002913]
[1720762399205,1.53304755,57233.0,57232.0,0.002913]
[1720762399414,1.37606006,57233.0,57232.0,0.002913]
[1720762399629,1.74067406,57233.0,57232.0,0.002913]
[1720762401375,1.91091146,57233.0,57232.0,0.002913]
[1720762402256,1.91091014,57233.0,57232.0,0.002913]
[1720762406014,1.91091054,57233.0,57232.0,0.002913]
[1720762406834,1.74067314,57233.0,57232.0,0.002913]
[1720762407005,1.81074414,57233.0,57232.0,0.002913]
[1720762408709,1.83374412,57233.0,57232.0,0.002913]
[1720762408894,1.81921502,57233.0,57232.0,0.002913]
[1720762409199,1.83374447,57233.0,57232.0,0.002913]
[1720762411482,1.22543047,57233.0,57232.0,0.002913]
[1720762411685,1.03535947,57233.0,57232.0,0.002913]
[1720762411887,0.79074547,57233.0,57232.0,0.002913]
[1720762412311,0.79074356,57233.0,57232.0,0.002913]
[1720762412893,1.03535756,57233.0,57232.0,0.002913]
[1720762413703,1.13035756,57233.0,57232.0,0.002913]
[1720762414883,1.01035756,57233.0,57232.0,0.002913]
[1720762415090,0.76574356,57233.0,57232.0,0.002913]
[1720762415709,0.76574389,57233.0,57232.0,0.002913]
[1720762416128,0.76574388,57233.0,57232.0,0.002913]
[1720762416355,1.01035788,57233.0,57232.0,0.002913]
[1720762416599,1.13035788,57233.0,57232.0,0.002913]
[1720762417298,1.01035788,57233.0,57232.0,0.002913]
[1720762417513,1.13035788,57233.0,57232.0,0.002913]
[1720762418138,0.76574388,57233.0,57232.0,0.002913]
[1720762418938,0.99583002,57233.0,57232.0,0.002913]
[1720762419139,0.76574384,57233.0,57232.0,0.002913]
[1720762420448,1.01035784,57233.0,57232.0,0.002913]
[1720762421288,0.76574384,57233.0,57232.0,0.002913]
[1720762421660,0.76574384,57233.0,57232.0,0.068113]
[1720762422520,0.75121602,57233.0,57232.0,0.068113]
[1720762422721,0.76574294,57233.0,57232.0,0.068113]
[1720762423122,0.76574294,57233.0,57232.0,0.150513]
[1720762426014,0.64260594,57233.0,57232.0,0.150513]
[1720762426347,0.64260589,57233.0,57232.0,0.150513]
[1720762427055,0.76491289,57233.0,57232.0,0.150513]
[1720762427553,0.27568489,57233.0,57232.0,0.150513]
[1720762427997,0.52029889,57233.0,57232.0,0.150513]
[1720762428449,1.12952689,57233.0,57232.0,0.002913]
[1720762428707,1.31936038,57233.0,57232.0,0.002913]
[1720762428945,1.7855134,57233.0,57232.0,0.002913]
[1720762429191,0.122336,57219.0,57218.0,0.0788]
[1720762429424,0.13686539,57219.0,57218.0,0.0788]
[1720762429671,0.38503181,57219.0,57218.0,0.0788]
[1720762430367,0.13686539,57219.0,57218.0,0.0788]
[1720762430480,0.01452939,57219.0,57218.0,0.139]
[1720762430900,0.122335,57220.0,57218.0,0.139]
[1720762431301,0.122336,57219.0,57218.0,0.139]
[1720762431705,0.13786435,57219.0,57218.0,0.161]
[1720762431905,0.13886435,57219.0,57218.0,0.161]
[1720762432109,0.124336,57219.0,57218.0,0.15]
[1720762432446,0.002,57219.0,57218.0,0.159]
[1720762432672,0.001,57219.0,57218.0,0.15]
[1720762433036,0.002,57219.0,57218.0,0.161]
[1720762433359,0.13886476,57219.0,57218.0,0.161]
[1720762434262,0.01652876,57219.0,57218.0,0.161]
[1720762434579,0.002,57219.0,57218.0,0.161]
[1720762435066,0.002,57219.0,57218.0,0.283339]
[1720762435240,0.002,57219.0,57218.0,0.161]
[1720762435443,0.01652837,57219.0,57218.0,0.161]
[1720762435613,0.002,57219.0,57218.0,0.161]
[1720762435815,0.01652849,57219.0,57218.0,0.161]
[1720762436052,0.01652851,57219.0,57218.0,0.161]
[1720762436486,0.002,57219.0,57218.0,0.161]
[1720762436686,0.01652874,57219.0,57218.0,0.161]
[1720762438302,0.62821074,57219.0,57218.0,0.161]
[1720762438503,0.62821074,57219.0,57218.0,0.1008]
[1720762438688,0.62821074,57219.0,57218.0,0.022]
[1720762439126,0.62821189,57219.0,57218.0,0.022]
[1720762439530,0.6282119,57219.0,57218.0,0.022]
[1720762440462,1.0928849,57219.0,57218.0,0.022]
[1720762440701,1.2345849,57219.0,57218.0,0.022]
[1720762441446,1.2345849,57219.0,57218.0,0.011]
[1720762441447,1.2335849,57219.0,57218.0,0.011]
[1720762441647,0.244687,57216.0,57208.0,0.0664]
[1720762441849,0.122358,57209.0,57208.0,0.0664]
[1720762442079,0.1368879,57209.0,57208.0,0.0664]
[1720762442661,0.3816039,57209.0,57208.0,0.0664]
[1720762442897,0.611802,57208.0,57207.0,0.0795]
[1720762443119,0.6263319,57208.0,57207.0,0.0795]
[1720762443620,0.6263319,57208.0,57207.0,0.07943129]
[1720762444622,0.6263319,57208.0,57201.0,0.065]
[1720762444623,0.244732,57206.0,57201.0,0.065]
[1720762444831,0.122373,57202.0,57201.0,0.065]
[1720762445974,0.01802739,57202.0,57194.0,0.0618]
[1720762446152,0.122384,57197.0,57194.0,0.0618]
[1720762446543,0.122382,57198.0,57195.0,0.0809]
[1720762447351,0.244757,57200.0,57195.0,0.0809]
[1720762447688,0.122378,57200.0,57199.0,0.08511435]
[1720762447896,0.245748,57202.0,57199.0,0.08511435]
[1720762447897,0.001,57202.0,57199.0,0.08511435]
[1720762448098,0.002,57202.0,57201.0,0.1538]
[1720762448529,0.001,57202.0,57201.0,0.1438]
[1720762448659,0.1,57205.0,57202.0,0.0816]
[1720762448660,0.222367,57205.0,57202.0,0.0816]
[1720762449881,0.489484,57203.0,57201.0,0.0622]
[1720762450105,0.12586642,57202.0,57201.0,0.0622]
[1720762450311,0.37061242,57202.0,57201.0,0.0622]
[1720762451582,0.367132,57200.0,57199.0,0.0764]
[1720762452430,0.36712,57202.0,57199.0,0.0764]
[1720762452630,0.106,57205.0,57201.0,0.0761]
[1720762452631,0.222368,57205.0,57201.0,0.0761]
[1720762452871,0.122369,57204.0,57201.0,0.0761]
[1720762453071,0.122369,57204.0,57201.0,0.0771]
[1720762454069,0.124369,57204.0,57201.0,0.0771]
[1720762454704,0.124369,57204.0,57201.0,0.0761]
[1720762455952,0.125369,57204.0,57201.0,0.0761]
[1720762456665,0.003,57204.0,57202.0,0.0614]
[1720762456941,0.003,57204.0,57203.0,0.0752]
[1720762458241,0.003,57204.0,57203.0,0.1358]
[1720762458451,0.1,57206.0,57204.0,0.14]
[1720762458617,0.1,57206.0,57205.0,0.0764]
[1720762459222,0.1,57207.0,57205.0,0.0764]
[1720762459596,0.1,57207.0,57205.0,0.0754]
[1720762459812,0.1,57208.0,57205.0,0.0754]
[1720762460565,0.005,57206.0,57205.0,0.0754]
[1720762461185,0.005,57206.0,57205.0,0.197766]
[1720762461356,0.005,57206.0,57205.0,0.264366]
[1720762461987,0.005,57207.0,57205.0,0.264366]
[1720762462184,0.12449497,57209.0,57205.0,0.264366]
[1720762462387,0.007,57208.0,57205.0,0.265366]
[1720762462591,0.003,57206.0,57205.0,0.264366]
[1720762462831,0.003,57206.0,57205.0,0.142]
[1720762463031,0.005,57206.0,57205.0,0.142]
[1720762463471,0.24685397,57209.0,57205.0,0.142]
[1720762463472,0.25385397,57209.0,57205.0,0.143]
[1720762463646,0.02153281,57208.0,57205.0,0.144]
[1720762463846,0.01453281,57207.0,57205.0,0.144]
[1720762464036,0.007,57208.0,57205.0,0.144]